Workbook

Sheet 읍면동별 세대 및 인구
A1: 여수시 읍면동별 세대 및 인구
A2: 작성기준 : 2018. 10. 31. 현재 | J2: (단위 : 세대, 명)
A3: 구 분 | B3: 세대수1) | C3: 합 계 | F3: 한국인 | I3: 외국인
C4: 계 | D4: 남 | E4: 여 | F4: 계 | G4: 남 | H4: 여 | I4: 계 | J4: 남 | K4: 여
A5: 2017년 말 | B5: 119,684 | C5: 290,528 | D5: 148,022 | E5: 142,506 | F5: 286,382 | G5: 145,122 | H5: 141,260 | I5: 4,146 | J5: 2,900 | K5: 1,246
A6: 18년 1월말 | B6: 119,743 | C6: 290,288 | D6: 147,908 | E6: 142,380 | F6: 286,154 | G6: 145,019 | H6: 141,135 | I6: 4,134 | J6: 2,889 | K6: 1,245
A7: 18년 2월말 | B7: 119,882 | C7: 289,956 | D7: 147,772 | E7: 142,184 | F7: 285,858 | G7: 144,910 | H7: 140,948 | I7: 4,098 | J7: 2,862 | K7: 1,236
A8: 18년 3월말 | B8: 119,912 | C8: 289,713 | D8: 147,654 | E8: 142,059 | F8: 285,529 | G8: 144,731 | H8: 140,798 | I8: 4,184 | J8: 2,923 | K8: 1,261
A9: 18년 4월말 | B9: 120,098 | C9: 289,644 | D9: 147,614 | E9: 142,030 | F9: 285,447 | G9: 144,682 | H9: 140,765 | I9: 4,197 | J9: 2,932 | K9: 1,265
A10: 18년 5월말 | B10: 120,213 | C10: 289,518 | D10: 147,533 | E10: 141,985 | F10: 285,317 | G10: 144,598 | H10: 140,719 | I10: 4,201 | J10: 2,935 | K10: 1,266
A11: 18년 6월말 | B11: 120,318 | C11: 289,420 | D11: 147,532 | E11: 141,888 | F11: 285,158 | G11: 144,549 | H11: 140,609 | I11: 4,262 | J11: 2,983 | K11: 1,279
A12: 18년 7월말 | B12: 120,318 | C12: 289,289 | D12: 147,506 | E12: 141,783 | F12: 284,973 | G12: 144,464 | H12: 140,509 | I12: 4,316 | J12: 3,042 | K12: 1,274
A13: 18년 8월말 | B13: 120,471 | C13: 288,920 | D13: 147,378 | E13: 141,542 | F13: 284,545 | G13: 144,271 | H13: 140,274 | I13: 4,375 | J13: 3,107 | K13: 1,268
A14: 18년 9월말 | B14: 120,619 | C14: 288,873 | D14: 147,403 | E14: 141,470 | F14: 284,418 | G14: 144,245 | H14: 140,173 | I14: 4,455 | J14: 3,158 | K14: 1,297
A15: 18년 10월말 | B15: =SUM(B16:B42) -> 120,709 | C15: =D15+E15 -> 288,638 | D15: =SUM(D16:D42) -> 147,326 | E15: =SUM(E16:E42) -> 141,312 | F15: =SUM(F16:F42) -> 284,166 | G15: =SUM(G16:G42) -> 144,147 | H15: =SUM(H16:H42) -> 140,019 | I15: =J15+K15 -> 4,472 | J15: =SUM(J16:J42) -> 3,179 | K15: =SUM(K16:K42) -> 1,293
A16: 돌산읍 | B16: 6,432 | C16: =SUM(D16:E16) -> 14,331 | D16: =SUM(G16+J16) -> 7,535 | E16: =SUM(H16+K16) -> 6,796 | F16: 13,620 | G16: 6,902 | H16: 6,718 | I16: =SUM(J16:K16) -> 711 | J16: 633 | K16: 78
A17: 소라면 | B17: 8,580 | C17: 21,196 | D17: =SUM(G17+J17) -> 10,702 | E17: =SUM(H17+K17) -> 10,494 | F17: 21,060 | G17: 10,661 | H17: 10,399 | I17: =SUM(J17:K17) -> 136 | J17: 41 | K17: 95
A18: 율촌면 | B18: 3,272 | C18: 6,828 | D18: 3,538 | E18: 3,290 | F18: 6,664 | G18: 3,419 | H18: 3,245 | I18: 164 | J18: 119 | K18: 45
A19: 화양면 | B19: 3,506 | C19: 6,930 | D19: 3,647 | E19: 3,283 | F19: 6,700 | G19: 3,458 | H19: 3,242 | I19: 230 | J19: 189 | K19: 41
A20: 남면 | B20: 1,716 | C20: 3,167 | D20: 1,653 | E20: 1,514 | F20: 3,054 | G20: 1,552 | H20: 1,502 | I20: 113 | J20: 101 | K20: 12
A21: 화정면 | B21: 1,275 | C21: 2,332 | D21: 1,162 | E21: 1,170 | F21: 2,272 | G21: 1,108 | H21: 1,164 | I21: 60 | J21: 54 | K21: 6
A22: 삼산면 | B22: 1,176 | C22: 2,215 | D22: 1,249 | E22: 966 | F22: 2,124 | G22: 1,168 | H22: 956 | I22: 91 | J22: 81 | K22: 10
A23: 동문동 | B23: 2,261 | C23: 4,262 | D23: 2,178 | E23: 2,084 | F23: 4,206 | G23: 2,142 | H23: 2,064 | I23: 56 | J23: 36 | K23: 20
A24: 한려동 | B24: 1,640 | C24: 3,165 | D24: 1,603 | E24: 1,562 | F24: 3,134 | G24: 1,591 | H24: 1,543 | I24: 31 | J24: 12 | K24: 19
A25: 중앙동 | B25: 2,418 | C25: 4,986 | D25: 2,494 | E25: 2,492 | F25: 4,886 | G25: 2,425 | H25: 2,461 | I25: 100 | J25: 69 | K25: 31
A26: 충무동 | B26: 2,270 | C26: 4,381 | D26: 2,269 | E26: 2,112 | F26: 4,340 | G26: 2,244 | H26: 2,096 | I26: 41 | J26: 25 | K26: 16
A27: 광림동 | B27: 3,241 | C27: 6,689 | D27: 3,449 | E27: 3,240 | F27: 6,636 | G27: 3,436 | H27: 3,200 | I27: 53 | J27: 13 | K27: 40
A28: 서강동 | B28: 1,901 | C28: 3,970 | D28: 1,994 | E28: 1,976 | F28: 3,940 | G28: 1,987 | H28: 1,953 | I28: 30 | J28: 7 | K28: 23
A29: 대교동 | B29: 3,092 | C29: 6,080 | D29: 3,220 | E29: 2,860 | F29: 5,790 | G29: 2,971 | H29: 2,819 | I29: 290 | J29: 249 | K29: 41
A30: 국동 | B30: 5,386 | C30: 12,848 | D30: 6,636 | E30: 6,212 | F30: 12,467 | G30: 6,305 | H30: 6,162 | I30: 381 | J30: 331 | K30: 50
A31: 월호동 | B31: 2,907 | C31: 7,732 | D31: 3,984 | E31: 3,748 | F31: 7,456 | G31: 3,730 | H31: 3,726 | I31: 276 | J31: 254 | K31: 22
A32: 여서동 | B32: 7,940 | C32: 20,610 | D32: 10,174 | E32: 10,436 | F32: 20,474 | G32: 10,107 | H32: 10,367 | I32: 136 | J32: 67 | K32: 69
A33: 문수동 | B33: 8,682 | C33: 21,046 | D33: 10,546 | E33: 10,500 | F33: 20,799 | G33: 10,388 | H33: 10,411 | I33: 247 | J33: 158 | K33: 89
A34: 미평동 | B34: 5,611 | C34: 12,648 | D34: 6,681 | E34: 5,967 | F34: 12,374 | G34: 6,483 | H34: 5,891 | I34: 274 | J34: 198 | K34: 76
A35: 둔덕동 | B35: 4,006 | C35: 11,095 | D35: 5,566 | E35: 5,529 | F35: 10,970 | G35: 5,509 | H35: 5,461 | I35: 125 | J35: 57 | K35: 68
A36: 만덕동 | B36: 4,170 | C36: 10,550 | D36: 5,282 | E36: 5,268 | F36: 10,393 | G36: 5,191 | H36: 5,202 | I36: 157 | J36: 91 | K36: 66
A37: 쌍봉동 | B37: 13,178 | C37: 34,711 | D37: 17,625 | E37: 17,086 | F37: 34,504 | G37: 17,526 | H37: 16,978 | I37: 207 | J37: 99 | K37: 108
A38: 시전동 | B38: 11,413 | C38: 31,671 | D38: 15,879 | E38: 15,792 | F38: 31,461 | G38: 15,771 | H38: 15,690 | I38: 210 | J38: 108 | K38: 102
A39: 여천동 | B39: 9,778 | C39: 22,655 | D39: 11,720 | E39: 10,935 | F39: 22,494 | G39: 11,671 | H39: 10,823 | I39: 161 | J39: 49 | K39: 112
A40: 주삼동 | B40: 2,994 | C40: 8,525 | D40: 4,348 | E40: 4,177 | F40: 8,465 | G40: 4,321 | H40: 4,144 | I40: 60 | J40: 27 | K40: 33
A41: 삼일동 | B41: 1,287 | C41: 2,780 | D41: 1,556 | E41: 1,224 | F41: 2,655 | G41: 1,445 | H41: 1,210 | I41: 125 | J41: 111 | K41: 14
A42: 묘도동 | B42: 577 | C42: 1,235 | D42: 636 | E42: 599 | F42: 1,228 | G42: 636 | H42: 592 | I42: 7 | J42: 0 | K42: 7
A43: 주 : 1) 세대수에는 외국인 세대 제외

Sheet 65세이상 인구(총괄)
A1: 65세이상 인구 현황(총괄)
A2: 작성기준 : 2018. 10. 31. 현재 | D2: (단위 : 명)
A3: 구 분 | B3: 계 | C3: 남 | D3: 여 | E3: 노령화 지수
A4: 2011년말 | B4: 37,830 | C4: 15,023 | D4: 22,807 | E4: 82.0
A5: 2012년말 | B5: 39,671 | C5: 15,929 | D5: 23,742 | E5: 89.4
A6: 2013년말 | B6: 41,369 | C6: 16,775 | D6: 24,594 | E6: 96.8
A7: 2014년말 | B7: 43,225 | C7: 17,752 | D7: 25,473 | E7: 105.4
A8: 2015년말 | B8: 44,997 | C8: 18,775 | D8: 26,222 | E8: 114.3
A9: 2016년말 | B9: 46,632 | C9: 19,720 | D9: 26,912 | E9: 121.8
A10: 2017년말 | B10: 48,569 | C10: 20,703 | D10: 27,866 | E10: 130.6
A11: 2018년 1월말 | B11: =SUM(C11:D11) -> 48,627 | C11: 20,751 | D11: 27,876 | E11: =B11/37049*100 -> 131.3
A12: 2018년 2월말 | B12: 48,684 | C12: 20,804 | D12: 27,880 | E12: 131.7
A13: 2018년 3월말 | B13: 48,775 | C13: 20,840 | D13: 27,935 | E13: 132.3
A14: 2018년 4월말 | B14: 48,814 | C14: 20,847 | D14: 27,967 | E14: 132.6
A15: 2018년 5월말 | B15: 48,923 | C15: 20,913 | D15: 28,010 | E15: 133.4
A16: 2018년 6월말 | B16: 49,020 | C16: 20,958 | D16: 28,062 | E16: 134.1
A17: 2018년 7월말 | B17: 49,138 | C17: 21,001 | D17: 28,137 | E17: 134.8
A18: 2018년 8월말 | B18: 49,262 | C18: 21,076 | D18: 28,186 | E18: 135.8
A19: 2018년 9월말 | B19: 49,383 | C19: 21,123 | D19: 28,260 | E19: 136.7
A20: 2018년 10월말 | B20: =SUM(C20:D20) -> 49,460 | C20: 21,172 | D20: 28,288 | E20: =B20/35977*100 -> 137.5
A21: 자료 : 민원지적과
A22: 주 : 노령화 지수 = (65세이상인구 / 0~14세 인구) * 100
